fUSD/lending_fUSD_20260202
["ID","MTS","AMOUNT","RATE_DAILY","PERIOD"]
[404338415,1770067814548,-5000.01,9.585e-05,2]
[404338416,1770067816951,-5000.01,9.585e-05,2]
[404338417,1770067817163,-5000.01,9.585e-05,2]
[404338418,1770067817290,-5000.01,9.585e-05,2]
[404338419,1770067817421,-5000.01,9.585e-05,2]
[404338420,1770067819572,-5000.01,9.585e-05,2]
[404338421,1770067819685,-5000.01,9.585e-05,2]
[404338422,1770067819818,-5000.01,9.585e-05,2]
[404338423,1770067819979,-5000.01,9.585e-05,2]
[404338424,1770067820084,-5000.01,9.585e-05,2]
[404338425,1770067820193,-5000.01,9.585e-05,2]
[404338426,1770067822763,-5000.01,9.585e-05,2]
[404338427,1770067822995,-5000.01,9.585e-05,2]
[404338428,1770067825640,-5000.01,9.585e-05,2]
[404338429,1770067825797,-2360.56395007,9.585e-05,2]
[404338430,1770067825839,-278.88209986,9.585e-05,2]
[404338431,1770067825955,-947.06779986,9.585e-05,2]
[404338432,1770067825981,-3105.87440028,9.585e-05,2]
[404338433,1770067826070,-1226.60944355,9.585e-05,2]
[404338434,1770067826102,-229.0,9.585e-05,2]
[404338435,1770067826135,-150.0,9.658e-05,2]
[404338436,1770067826166,-150.0,9.658e-05,2]
[404338437,1770067826196,-218.43722984,9.684e-05,2]
[404338438,1770067826231,-500.0,9.684e-05,2]
[404338439,1770067826687,-525.10116994,9.684e-05,2]
[404338440,1770067826767,316.43571289,9.684e-05,2]
[404338447,1770067831278,-5049.89890697,9.685e-05,2]
[404338450,1770067831338,-4217.6487378,9.685e-05,2]
[404338451,1770067831351,-383057.67903651,9.685e-05,2]
[404338452,1770067831365,-19522.97609625,9.685e-05,2]
[404338453,1770067831377,-17386.6286345,9.685e-05,2]
[404338454,1770067831389,-257.8752,9.685e-05,2]
[404338455,1770067831401,-1450.71310277,9.685e-05,2]
[404338456,1770067831419,-957.92,9.685e-05,2]
[404338457,1770067831460,-1157.04799734,9.685e-05,2]
[404338458,1770067831473,-2168.45160295,9.685e-05,2]
[404338459,1770067837442,-266.33602,9.685e-05,2]
[404338460,1770067837453,-478.37891291,9.685e-05,2]
[404338461,1770067837463,-5205.62314542,9.685e-05,2]
[404338462,1770067837501,-2361230.64997701,9.685e-05,2]
[404338463,1770067837510,-500.0,9.685e-05,2]
[404338464,1770067837520,-250.0,9.685e-05,2]
[404338465,1770067837530,-4407.07194076,9.685e-05,2]
[404338466,1770067837539,-500.0,9.695e-05,2]
[404338467,1770067837548,-500.0,9.695e-05,2]
[404338468,1770067837558,-539.56453595,9.695e-05,2]
[404338469,1770067837567,-200.0,9.713e-05,2]
[404338470,1770067837576,-1000.0,9.783e-05,2]
[404338471,1770067837585,-1000.0,9.783e-05,2]
[404338472,1770067837594,-500.0,9.785e-05,2]
[404338473,1770067837603,-1000.0,9.785e-05,2]
[404338474,1770067837612,-275.61,9.8e-05,2]
[404338476,1770067837622,-6998.0119,9.973e-05,2]
[404338477,1770067837631,-151.0,9.997e-05,2]
[404338479,1770067837640,-161.03177452,0.0001,2]
[404338480,1770067837650,-161.03177452,0.0001,2]
[404338481,1770067837659,-161.03177452,0.0001,2]
[404338482,1770067837668,-5905.17,0.0001,2]
[404338484,1770067837678,-1403.15,0.0001,2]
[404338485,1770067837687,-3522.37,0.0001,2]
[404338487,1770067837696,-9999.99,0.0001,2]
[404338489,1770067837705,-1444.14,0.0001,2]
[404338491,1770067837715,-150.99,0.0001,2]
[404338493,1770067837726,-9999.99,0.0001,2]
[404338496,1770067837743,-999.99,0.0001,2]
[404338499,1770067837752,-39040.99,0.0001,2]
[404338501,1770067837761,-404.72,0.0001,2]
[404338504,1770067837770,-9999.99,0.0001,2]
[404338507,1770067837779,-9999.99,0.0001,2]
[404338510,1770067837789,-150.99,0.0001,2]
[404338512,1770067837798,-2692.16,0.0001,2]
[404338515,1770067837807,-499.99,0.0001,2]
[404338517,1770067837816,-9999.99,0.0001,2]
[404338519,1770067837826,-299.99,0.0001,2]
[404338520,1770067837841,-483.76,0.0001,2]
[404338522,1770067837859,-151.0,0.0001,2]
[404338524,1770067837872,-151.0,0.0001,2]
[404338525,1770067837882,-151.0,0.0001,2]
[404338526,1770067837892,-500.0,0.0001,2]
[404338527,1770067837901,-151.0,0.0001,2]
[404338528,1770067837910,-500.0,0.0001,2]
[404338529,1770067837919,-151.0,0.0001,2]
[404338530,1770067837929,-500.0,0.0001,2]
[404338531,1770067837939,-500.0,0.0001,2]
[404338532,1770067837948,-151.0,0.0001,2]
[404338533,1770067837957,-500.0,0.0001,2]
[404338534,1770067837967,-151.0,0.0001,2]
[404338535,1770067837976,-500.0,0.0001,2]
[404338536,1770067837985,-151.0,0.0001,2]
[404338537,1770067837994,-500.0,0.0001,2]
[404338538,1770067838003,-151.0,0.0001,2]
[404338539,1770067838012,-500.0,0.0001,2]
[404338540,1770067838023,-151.0,0.0001,2]
[404338541,1770067838033,-500.0,0.0001,2]
[404338542,1770067838042,-151.0,0.0001,2]
[404338543,1770067838051,-500.0,0.0001,2]
[404338544,1770067838060,-151.0,0.0001,2]
[404338545,1770067838070,-500.0,0.0001,2]
[404338546,1770067838080,-151.0,0.0001,2]
[404338547,1770067838090,-151.0,0.0001,2]
[404338548,1770067838100,-151.0,0.0001,2]
[404338549,1770067838109,-151.0,0.0001,2]
[404338550,1770067838119,-151.0,0.0001,2]
[404338551,1770067838129,-151.0,0.0001,2]
[404338552,1770067838138,-200.0,0.0001,2]
[404338553,1770067838148,-500.0,0.0001,2]
[404338554,1770067838157,-151.0,0.0001,2]
[404338555,1770067838167,-151.0,0.0001,2]
[404338556,1770067838178,-151.0,0.0001,2]
[404338557,1770067838190,-151.0,0.0001,2]
[404338558,1770067838200,-151.0,0.0001,2]
[404338559,1770067838210,-151.0,0.0001,2]
[404338560,1770067838220,-151.0,0.0001,2]
[404338561,1770067838230,-151.0,0.0001,2]
[404338562,1770067838239,-151.0,0.0001,2]
[404338563,1770067838248,-151.0,0.0001,2]
[404338564,1770067838258,-151.0,0.0001,2]
[404338565,1770067838268,-151.0,0.0001,2]
[404338566,1770067838277,-151.0,0.0001,2]
[404338567,1770067838287,-500.0,0.0001,2]
[404338568,1770067838296,-500.0,0.0001,2]
[404338569,1770067838306,-500.0,0.0001,2]
[404338570,1770067838315,-500.0,0.0001,2]
[404338571,1770067838324,-500.0,0.0001,2]
[404338572,1770067838334,-500.0,0.0001,2]
[404338573,1770067838343,-500.0,0.0001,2]
[404338574,1770067838354,-500.0,0.0001,2]
[404338575,1770067838364,-500.0,0.0001,2]
[404338576,1770067838374,-500.0,0.0001,2]
[404338577,1770067838383,-500.0,0.0001,2]
[404338578,1770067838392,-500.0,0.0001,2]
[404338579,1770067838402,-200.0,0.0001,2]
[404338580,1770067838411,-846.60196439,0.0001,2]
[404338581,1770067838420,-944.63661864,0.0001,2]
[404338582,1770067838435,-2750.57,0.00010056,2]
[404338583,1770067838444,-2750.57,0.00010082,2]
[404338584,1770067838454,-397.02459596,0.00010107,2]
[404338585,1770067838463,-2750.57,0.00010109,2]
[404338586,1770067838473,-2750.57,0.00010135,2]
[404338587,1770067838482,-192.87643987,0.00010149,2]
[404338588,1770067838492,-1313.0,0.0001016,2]
[404338589,1770067838502,-2750.57,0.00010162,2]
[404338590,1770067838512,-450.0,0.00010165,2]
[404338591,1770067838522,-1980.0,0.00010181,2]
[404338592,1770067838531,-199.0,0.00010186,2]
[404338593,1770067838540,-856.0,0.00010187,2]
[404338594,1770067838550,-2750.57,0.00010188,2]
[404338595,1770067838754,-497.0,0.00010206,2]
[404338596,1770067838764,-150.0,0.00010208,2]
[404338597,1770067838773,-2750.57,0.00010215,2]
[404338598,1770067838782,-993.0,0.00010228,2]
[404338599,1770067838791,-2750.57,0.00010241,2]
[404338600,1770067838802,-2750.57,0.00010268,2]
[404338601,1770067838811,-500.0,0.00010274,2]
[404338602,1770067838820,-483.76,0.00010274,2]
[404338603,1770067838830,-245.05534599,0.00010274,2]
[404338604,1770067838840,-2750.57,0.00010294,2]
[404338605,1770067838850,-2750.57,0.00010321,2]
[404338606,1770067838859,-2750.57,0.00010347,2]
[404338607,1770067838868,-2750.57,0.00010374,2]
[404338608,1770067838878,-2750.57,0.000104,2]
[404338609,1770067838887,-2750.57,0.00010427,2]
[404338610,1770067838896,-2750.57,0.00010453,2]
[404338611,1770067838905,-2750.57,0.00010479,2]
[404338612,1770067838915,-2750.57,0.00010506,2]
[404338613,1770067838924,-2750.57,0.00010532,2]
[404338614,1770067838934,-1680.0,0.00010542,2]
[404338615,1770067838943,-255.0,0.00010542,2]
[404338616,1770067838953,-500.0,0.00010548,2]
[404338617,1770067838963,-483.76,0.00010548,2]
[404338618,1770067838972,-200.0,0.00010548,2]
[404338619,1770067838982,-500.0,0.00010548,2]
[404338620,1770067838992,-200.0,0.00010548,2]
[404338621,1770067839001,-2750.57,0.00010559,2]
[404338622,1770067839011,-1600.0,0.0001058,2]
[404338623,1770067839020,-250.0,0.00010653,2]
[404338624,1770067839029,-193.0,0.00010653,2]
[404338625,1770067839039,-500.0,0.00010653,2]
[404338626,1770067839048,-250.0,0.00010653,2]
[404338627,1770067839058,-312.63377507,0.00010653,2]
[404338628,1770067839067,-268.67078659,0.000107,2]
[404338629,1770067839079,-1583.98667188,0.000107,2]
[404338630,1770067839088,-437.54706566,0.000107,2]
[404338631,1770067839098,-308318.50068832,0.00010755,2]
[404338632,1770067839107,-1029.34213251,0.000108,2]
[404338633,1770067839117,-500.0,0.00010822,2]
[404338634,1770067839127,-483.76,0.00010822,2]
[404338635,1770067839137,-500.0,0.00010959,2]
[404338636,1770067839147,-150.0,0.00010959,2]
[404338637,1770067839156,-150.0,0.00010959,2]
[404338638,1770067839166,-8759.33,0.00010987,2]
[404338640,1770067839175,-166.66,0.00011057,2]
[404338642,1770067839184,-500.0,0.00011096,2]
[404338643,1770067839195,-483.76,0.00011096,2]
[404338644,1770067839205,-200.0,0.00011096,2]
[404338645,1770067839215,-500.0,0.00011096,2]
[404338646,1770067839224,-200.0,0.00011096,2]
[404338647,1770067839233,-57320.85239784,0.00011099,2]
[404338648,1770067839242,-57320.85239778,0.00011099,2]
[404338649,1770067839251,-3253.06679883,0.00011099,2]
[404338650,1770067839260,-3253.06679877,0.00011099,2]
[404338651,1770067839269,-184.11,0.00011122,2]
[404338652,1770067839278,-460.58,0.00011221,2]
[404338653,1770067839287,-19920.69,0.00011233,2]
[404338654,1770067839296,-944.63661864,0.00011325,2]
[404338655,1770067839306,-256339.52,0.00011335,2]
[404338656,1770067839315,-500.0,0.0001137,2]
[404338657,1770067839325,-483.76,0.0001137,2]
[404338658,1770067839334,-166.66,0.00011422,2]
[404338659,1770067839344,-57320.85239778,0.00011433,2]
[404338661,1770067839354,-2351.0,0.00011597,2]
[404338662,1770067839363,-433.0,0.00011597,2]
[404338663,1770067839373,-500.0,0.00011644,2]
[404338664,1770067839384,-483.76,0.00011644,2]
[404338665,1770067839393,-200.0,0.00011644,2]
[404338666,1770067839402,-500.0,0.00011644,2]
[404338667,1770067839411,-208.65826531,0.00011644,2]
[404338668,1770067839420,-3253.06679877,0.00011695,2]
[404338669,1770067839433,-1600.0,0.00011756,2]
[404338670,1770067839442,-166.66,0.00011787,2]
[404338671,1770067839452,-455.77,0.00011829,2]
[404338672,1770067839462,-500.0,0.00011918,2]
[404338673,1770067839474,-483.76,0.00011918,2]
[404338674,1770067839484,-393.32,0.00011925,2]
[404338675,1770067839494,-2956.64455146,0.00012061,2]
[404338676,1770067839505,-166.66,0.00012152,2]
[404338677,1770067839515,-500.0,0.00012192,2]
[404338678,1770067839524,-483.76,0.00012192,2]
[404338679,1770067839534,-200.0,0.00012192,2]
[404338680,1770067839543,-500.0,0.00012192,2]
[404338681,1770067839553,-1617.53493796,0.000122,2]
[404338682,1770067839563,-160.29771235,0.000122,2]
[404338683,1770067839572,-57320.85239778,0.00012357,2]
[404338684,1770067839581,-500.0,0.00012466,2]
[404338685,1770067839591,-483.76,0.00012466,2]
[404338686,1770067839601,-166.66,0.00012517,2]
[404338687,1770067839612,-896.86228799,0.00012689,2]
[404338688,1770067839622,-193705.37119555,0.0001269,2]
[404338689,1770067839632,-322.6107,0.00012725,2]
[404338690,1770067839642,-578.20924308,0.00012725,2]
[404338691,1770067839652,-209.40437684,0.00012725,2]
[404338692,1770067839662,-250.0,0.00012725,2]
[404338693,1770067839672,-250.0,0.00012725,2]
[404338694,1770067839683,-1428.38747117,0.00012725,2]
[404338695,1770067839694,-250.0,0.00012725,2]
[404338696,1770067839703,-250.0,0.00012725,2]
[404338697,1770067839713,-250.0,0.00012725,2]
[404338698,1770067839723,-250.0,0.00012725,2]
[404338699,1770067839734,-250.0,0.00012725,2]
[404338700,1770067839743,-174.61919141,0.00012725,2]
[404338701,1770067839752,-250.0,0.00012725,2]
[404338702,1770067839763,-250.0,0.00012725,2]
[404338703,1770067839773,-250.0,0.00012725,2]
[404338704,1770067839784,-250.0,0.00012725,2]
[404338705,1770067839794,-151.0,0.00012725,2]
[404338706,1770067839803,-721.12765535,0.00012725,2]
[404338708,1770067839812,-209.40437684,0.00012725,2]
[404338710,1770067839821,-209.40437684,0.00012725,2]
[404338712,1770067839830,-859.80605061,0.00012725,2]
[404338713,1770067839839,-500.0,0.00012725,2]
[404338715,1770067839849,-500.0,0.00012725,2]
[404338717,1770067839859,-500.0,0.00012725,2]
[404338718,1770067839867,-500.0,0.00012725,2]
[404338719,1770067839876,-500.0,0.00012725,2]
[404338720,1770067839886,-500.0,0.00012725,2]
[404338721,1770067839895,-500.0,0.00012725,2]
[404338722,1770067839904,-500.0,0.00012725,2]
[404338723,1770067839913,-500.0,0.00012725,2]
[404338724,1770067839922,-500.0,0.00012725,2]
[404338725,1770067839932,-500.0,0.00012725,2]
[404338726,1770067839941,-250.0,0.00012725,2]
[404338727,1770067839950,-250.0,0.00012725,2]
[404338728,1770067839961,-250.0,0.00012725,2]
[404338730,1770067839971,-250.0,0.00012725,2]
[404338732,1770067839980,-250.0,0.00012725,2]
[404338733,1770067839990,-250.0,0.00012725,2]
[404338735,1770067839999,-500.0,0.0001274,2]
[404338737,1770067840009,-483.76,0.0001274,2]
[404338739,1770067840019,-200.0,0.0001274,2]
[404338742,1770067840029,-500.0,0.0001274,2]
[404338744,1770067840038,-846.60196438,0.00012749,2]
[404338745,1770067840047,-3253.06679877,0.00012749,2]
[404338748,1770067840057,-3292.0,0.00012756,2]
[404338749,1770067840066,-736.0,0.00012756,2]
[404338751,1770067840076,-217.15233878,0.0001278,2]
[404338753,1770067840085,-250.0,0.00012797,2]
[404338755,1770067840095,-225.18697532,0.00012835,2]
[404338757,1770067840104,-614.92716635,0.00012871,2]
[404338759,1770067840113,-270.94,0.00012877,2]
[404338761,1770067840122,-166.66,0.00012882,2]
[404338763,1770067840131,-233.51889341,0.0001289,2]
[404338765,1770067840140,-1600.0,0.00012931,2]
[404338767,1770067840149,-242.15909246,0.00012945,2]
[404338769,1770067840158,-251.11897888,0.00013,2]
[404338771,1770067840167,-4433.94000455,0.00013,2]
[404338773,1770067840176,-500.0,0.00013014,2]
[404338775,1770067840186,-483.76,0.00013014,2]
[404338777,1770067840196,-5353.89966494,0.0001305,2]
[404338779,1770067840204,-260.4103811,0.00013055,2]
[404338781,1770067840216,-270.0455652,0.0001311,2]
[404338782,1770067840225,-7805.66,0.00013151,2]
[404338783,1770067840235,-280.03725112,0.00013165,2]
[404338784,1770067840244,-290.39862941,0.0001322,2]
[404338785,1770067840253,-151.0,0.00013244,2]
[404338786,1770067840261,-256.85,0.00013246,2]
[404338787,1770067840271,-151.0,0.0001327,2]
[404338788,1770067840280,-151.0,0.0001327,2]
[404338789,1770067840289,-151.0,0.00013271,2]
[404338790,1770067840298,-151.0,0.00013271,2]
[404338791,1770067840307,-276.99112212,0.00013273,2]
[404338792,1770067840316,-1481.23780761,0.00013273,2]
[404338793,1770067840324,-181.08010149,0.00013273,2]
[404338794,1770067840333,-151.0,0.00013273,2]
[404338795,1770067840342,-217.15233878,0.00013273,2]
[404338796,1770067840351,-301.1433787,0.00013275,2]
[404338797,1770067840360,-57320.85239778,0.00013281,2]
[404338798,1770067840369,-500.0,0.00013288,2]
[404338799,1770067840377,-483.76,0.00013288,2]
[404338800,1770067840387,-222.88299738,0.00013288,2]
[404338801,1770067840396,-500.0,0.00013288,2]
[404338802,1770067840405,-3240.0,0.00013425,2]
[404338803,1770067840414,-262018.3866602,0.00013489,2]
[404338804,1770067840423,-183.76045452,0.000135,2]
[404338805,1770067840436,-500.0,0.00013562,2]
[404338806,1770067840445,-483.76,0.00013562,2]
[404338807,1770067840454,-500.0,0.00013698,2]
[404338808,1770067840463,-500.0,0.00013698,2]
[404338809,1770067840473,-500.0,0.00013698,2]
[404338810,1770067840481,-500.0,0.00013698,2]
[404338811,1770067840490,-500.0,0.00013698,2]
[404338812,1770067840499,-434.36904423,0.00013698,2]
[404338813,1770067840510,-500.0,0.00013698,2]
[404338814,1770067840519,-500.0,0.00013698,2]
[404338815,1770067840527,-500.0,0.00013698,2]
[404338816,1770067840537,-500.0,0.00013698,2]
[404338817,1770067840545,-500.0,0.00013698,2]
[404338818,1770067840554,-500.0,0.00013698,2]
[404338819,1770067840564,-500.0,0.00013698,2]
[404338820,1770067840573,-270.05459214,0.00013698,2]
[404338821,1770067840582,-509.53416261,0.00013698,2]
[404338822,1770067840591,-500.0,0.00013698,2]
[404338823,1770067840603,-500.0,0.00013698,2]
[404338824,1770067840614,-500.0,0.00013698,2]
[404338825,1770067840624,-500.0,0.00013698,2]
[404338826,1770067840634,-500.0,0.00013698,2]
[404338827,1770067840645,-500.0,0.00013698,2]
[404338828,1770067840655,-500.0,0.00013698,2]
[404338829,1770067840666,-500.0,0.00013698,2]
[404338830,1770067840677,-500.0,0.00013698,2]
[404338831,1770067840686,-500.0,0.00013698,2]
[404338832,1770067840695,-500.0,0.00013698,2]
[404338833,1770067840705,-315.14823953,0.00013698,2]
[404338834,1770067840714,-500.0,0.00013698,2]
[404338835,1770067840723,-500.0,0.00013698,2]
[404338836,1770067840733,-500.0,0.00013698,2]
[404338837,1770067840743,-500.0,0.00013698,2]
[404338838,1770067840753,-238.63772553,0.00013698,2]
[404338839,1770067840762,-500.0,0.00013698,2]
[404338840,1770067840772,-264.28034237,0.00013698,2]
[404338841,1770067840782,-500.0,0.00013698,2]
[404338842,1770067840793,-500.0,0.00013698,2]
[404338843,1770067840804,-500.0,0.00013698,2]
[404338844,1770067840815,-500.0,0.00013698,2]
[404338845,1770067840825,-500.0,0.00013698,2]
[404338846,1770067840834,-500.0,0.00013698,2]
[404338847,1770067840843,-500.0,0.00013698,2]
[404338848,1770067840853,-500.0,0.00013698,2]
[404338849,1770067840862,-500.0,0.00013698,2]
[404338850,1770067840871,-636.87920592,0.00013698,2]
[404338851,1770067840881,-520.9392261,0.00013698,2]
[404338852,1770067840892,-1187.7,0.00013698,2]
[404338853,1770067840901,-1187.7,0.00013698,2]
[404338854,1770067840911,-1187.7,0.00013698,2]
[404338855,1770067840921,-1187.7,0.00013698,2]
[404338856,1770067840932,-1187.7,0.00013698,2]
[404338857,1770067840941,-1187.7,0.00013698,2]
[404338858,1770067840951,-1187.7,0.00013698,2]
[404338859,1770067840961,-1187.7,0.00013698,2]
[404338860,1770067840970,-1187.7,0.00013698,2]
[404338861,1770067840979,-1187.7,0.00013698,2]
[404338862,1770067840990,-1187.7,0.00013698,2]
[404338863,1770067841011,-1187.7,0.00013698,2]
[404338864,1770067841021,-1187.7,0.00013698,2]
[404338865,1770067841032,-1187.7,0.00013698,2]
[404338866,1770067841042,-1187.7,0.00013698,2]
[404338867,1770067841052,-1187.7,0.00013698,2]
[404338868,1770067841065,-1187.7,0.00013698,2]
[404338869,1770067841075,-500.0,0.00013698,2]
[404338870,1770067841086,-500.0,0.00013698,2]
[404338871,1770067841096,-500.0,0.00013698,2]
[404338872,1770067841105,-500.0,0.00013698,2]
[404338873,1770067841115,-500.0,0.00013698,2]
[404338874,1770067841125,-500.0,0.00013698,2]
[404338875,1770067841134,-500.0,0.00013698,2]
[404338876,1770067841144,-500.0,0.00013698,2]
[404338877,1770067841154,-556.64650747,0.00013698,2]
[404338878,1770067841241,-535.53919898,0.00013698,2]
[404338879,1770067841252,-500.0,0.00013698,2]
[404338880,1770067841262,-500.0,0.00013698,2]
[404338881,1770067841273,-500.0,0.00013698,2]
[404338882,1770067841284,-469.64985738,0.00013698,2]
[404338883,1770067841297,-500.0,0.00013698,2]
[404338884,1770067841307,-500.0,0.00013698,2]
[404338885,1770067841320,-500.0,0.00013698,2]
[404338886,1770067841329,-500.0,0.00013698,2]
[404338887,1770067841338,-500.0,0.00013698,2]
[404338888,1770067841347,-500.0,0.00013698,2]
[404338889,1770067841357,-500.0,0.00013698,2]
[404338890,1770067841368,-500.0,0.00013698,2]
[404338891,1770067841378,-500.0,0.00013698,2]
[404338892,1770067841389,-500.0,0.00013698,2]
[404338893,1770067841400,-500.0,0.00013698,2]
[404338894,1770067841409,-500.0,0.00013698,2]
[404338895,1770067841419,-500.0,0.00013698,2]
[404338896,1770067841431,-500.0,0.00013698,2]
[404338897,1770067841440,-500.0,0.00013698,2]
[404338898,1770067841451,-500.0,0.00013698,2]
[404338899,1770067841461,-626.72,0.00013698,2]
[404338900,1770067841471,-626.72,0.00013698,2]
[404338901,1770067841481,-626.72,0.00013698,2]
[404338902,1770067841491,-626.72,0.00013698,2]
[404338903,1770067841502,-626.72,0.00013698,2]
[404338904,1770067841512,-626.72,0.00013698,2]
[404338905,1770067841522,-626.72,0.00013698,2]
[404338906,1770067841533,-626.72,0.00013698,2]
[404338907,1770067841543,-626.72,0.00013698,2]
[404338908,1770067841554,-626.72,0.00013698,2]
[404338909,1770067841565,-626.72,0.00013698,2]
[404338910,1770067841576,-626.72,0.00013698,2]
[404338911,1770067841585,-626.72,0.00013698,2]
[404338912,1770067841595,-626.72,0.00013698,2]
[404338913,1770067841605,-626.72,0.00013698,2]
[404338914,1770067841615,-626.72,0.00013698,2]
[404338915,1770067841626,-500.0,0.00013698,2]
[404338916,1770067841637,-500.0,0.00013698,2]
[404338917,1770067841648,-500.0,0.00013698,2]
[404338918,1770067841659,-500.0,0.00013698,2]
[404338919,1770067841669,-500.0,0.00013698,2]
[404338920,1770067841683,-500.0,0.00013698,2]
[404338921,1770067841692,-500.0,0.00013698,2]
[404338922,1770067841702,-500.0,0.00013698,2]
[404338923,1770067841712,-464.07,0.00013699,2]
[404338924,1770067841722,-195.16,0.00013699,2]
[404338925,1770067841733,-162.64,0.00013699,2]
[404338926,1770067841743,-813.2,0.00013699,2]
[404338927,1770067841753,-3253.06679877,0.00013804,2]
[404338928,1770067841763,-1536.04360649,0.00013821,2]
[404338929,1770067841775,-187.78006525,0.00013821,2]
[404338930,1770067841785,-230.16041742,0.00013821,2]
[404338931,1770067841795,-225.18697532,0.00013821,2]
[404338932,1770067841805,-500.0,0.00013836,2]
[404338933,1770067841815,-483.76,0.00013836,2]
[404338934,1770067841826,-500.0,0.00013836,2]
[404338935,1770067841836,-500.0,0.00013973,2]
[404338936,1770067841845,-500.0,0.00013973,2]
[404338937,1770067841854,-500.0,0.00013973,2]
[404338938,1770067841863,-168.13382401,0.00013973,2]
[404338939,1770067841872,-500.0,0.00013973,2]
[404338940,1770067841881,-500.0,0.00013973,2]
[404338941,1770067841890,-500.0,0.00013973,2]
[404338942,1770067841899,-490.75391952,0.00013973,2]
[404338943,1770067841908,-460.07091613,0.00013973,2]
[404338944,1770067841917,-500.0,0.00013973,2]
[404338945,1770067841926,-500.0,0.00013973,2]
[404338946,1770067841936,-163.90719075,0.00013973,2]
[404338947,1770067841945,-500.0,0.00013973,2]
[404338948,1770067841955,-500.0,0.00013973,2]
[404338949,1770067841964,-500.0,0.00013973,2]
[404338950,1770067841974,-500.0,0.00013973,2]
[404338951,1770067841983,-500.0,0.00013973,2]
[404338952,1770067841993,-500.0,0.00013973,2]
[404338953,1770067842002,-500.0,0.00013973,2]
[404338954,1770067842012,-500.0,0.00013973,2]
[404338955,1770067842022,-500.0,0.00013973,2]
[404338956,1770067842031,-163.07853281,0.00013973,2]
[404338957,1770067842044,-500.0,0.00013973,2]
[404338958,1770067842053,-500.0,0.00013973,2]
[404338959,1770067842063,-500.0,0.00013973,2]
[404338960,1770067842072,-500.0,0.00013973,2]
[404338961,1770067842081,-500.0,0.00013973,2]
[404338962,1770067842090,-500.0,0.00013973,2]
[404338963,1770067842100,-500.0,0.00013973,2]
[404338964,1770067842109,-500.0,0.00013973,2]
[404338965,1770067842119,-500.0,0.00013973,2]
[404338966,1770067842131,-1252.0,0.00014031,2]
[404338967,1770067842141,-4609.0,0.00014032,2]
[404338968,1770067842150,-245.05534597,0.00014087,2]
[404338969,1770067842159,-334.5472959,0.00014094,2]
[404338970,1770067842169,-1600.0,0.00014107,2]
[404338971,1770067842179,-483.76,0.0001411,2]
[404338972,1770067842189,-44950.45508119,0.00014156,2]
[404338973,1770067842198,-57320.85239778,0.00014204,2]
[404338974,1770067842207,-1583.98667188,0.000143,2]
[404338975,1770067842218,-437.54706565,0.000143,2]
[404338976,1770067842227,-1592.87721993,0.00014369,2]
[404338977,1770067842240,-194.72792766,0.00014369,2]
[404338978,1770067842250,-233.51889341,0.00014369,2]
[404338979,1770067842259,-483.76,0.00014384,2]
[404338980,1770067842268,-500.0,0.00014384,2]
[404338981,1770067842278,-10331.11610173,0.0001439,2]